Cogmind - Beta 16 @@@ ROGUE MODE // 2025.12.16 @ 00:05:09 Player: surprisinglarge Result: Self-destructed Performance ------------- Evolutions (2) 1000 Regions Visited (4) 800 Robots Destroyed (38) 190 Value Destroyed (1084) 1084 Prototype IDs (1) 20 Alien Tech Used (0) 0 Bonus (68) 68 TOTAL SCORE: 3162 Bonus ------- Follower Combat Kills 68 Cogmind --------- Core Integrity 192/550 Matter 286/300 Energy 275/275 System Corruption 2% Temperature Hot (218) Movement Walking (190) Ox1 Location -8/Storage Parts ------- > --- POWER (1) -------- Deuterium Engine > --- PROPULSION (4) --- Carbon-fiber Leg Carbon-fiber Leg > --- UTILITY (3) ------ Improved Heat Sink Large Storage Unit > --- WEAPON (3) ------- Improved Medium Laser Flak Cannon > --- INVENTORY (15) --- Light Deuterium Engine Cryofiber Web Peak State ------------ > --- POWER ------------ Deuterium Engine > --- PROPULSION ------- Aluminum Leg Carbon-fiber Leg Carbon-fiber Leg Titanium Leg > --- UTILITY ---------- Improved Heat Sink Large Storage Unit Particle Charger > --- WEAPON ----------- Improved Medium Laser Field Laser Flak Cannon > --- INVENTORY -------- Light Deuterium Engine Cryofiber Web [Rating: 29] Favorites ----------- Power Deuterium Engine Engine Deuterium Engine Power Core Light Nuclear Core Propulsion Aluminum Leg Leg Aluminum Leg Utility Large Storage Unit Device Particle Charger Storage Large Storage Unit Protection Medium Armor Plating Weapon Improved Medium Laser Energy Gun Improved Medium Laser Energy Cannon Beam Cannon Ballistic Gun Assault Rifle Ballistic Cannon Flak Cannon Build | -11 -10 -9 -8 -8 ------- Run | Yrd Mat Mat Mat Sto Slots Evolved 4 | . . 2 2 . Power . | . . . . . Propulsion 2 | . . 2 . . Utility 1 | . . . 1 . Weapon 1 | . . . 1 . Parts Attached 32 | 6 2 15 5 4 Power 4 | 1 1 1 1 . Engine 3 | 1 . 1 1 . Core 1 | . 1 . . . Reactor . | . . . . . Propulsion 11 | 2 . 6 1 2 Treads . | . . . . . Leg 11 | 2 . 6 1 2 Wheel . | . . . . . Hover . | . . . . . Flight . | . . . . . Utility 6 | 1 . 3 1 1 Device 3 | . . 1 1 1 Storage 2 | 1 . 1 . . Processor . | . . . . . Hackware . | . . . . . Protection 1 | . . 1 . . Artifact . | . . . . . Weapon 11 | 2 1 5 2 1 Energy Gun 6 | . 1 3 2 . Energy Cannon 2 | . . 2 . . Ballistic Gun 2 | 2 . . . . Ballistic Cannon 1 | . . . . 1 Launcher . | . . . . . Special Weapon . | . . . . . Impact Weapon . | . . . . . Slashing Weapon . | . . . . . Piercing Weapon . | . . . . . Special Melee Weapon . | . . . . . Unidentified Prototypes 1 | . . 1 . . Parts Lost 10 | . . 6 . 4 Power . | . . . . . Propulsion 6 | . . 4 . 2 Utility 1 | . . . . 1 Weapon 3 | . . 2 . 1 Highest Loss Streak 5 | . . 5 . 2 To Critical Strikes . | . . . . . Average Backups 1 | . . 1 1 1 Power . | . . . . . Propulsion . | . . . . . Utility . | . . . . . Weapon 1 | . . . 1 1 Tool/Special . | . . . . . Unused Backups 3 | . . . . 3 Power 2 | . . . . 2 Propulsion . | . . . . . Utility 1 | . . . . 1 Weapon . | . . . . . Tool/Special . | . . . . . Average Slot Usage (%) 86 | . 85 86 95 85 Engine 8 | . 5 7 9 9 Core 1 | . 8 3 . . Leg 27 | . 28 34 36 22 Device 10 | . . 5 5 16 Storage 10 | . 14 11 9 9 Protection 2 | . . 3 9 1 Energy Gun 17 | . 8 7 27 21 Energy Cannon 1 | . . 6 . . Ballistic Gun 3 | . 19 6 . . Ballistic Cannon 3 | . . . . 5 Peak Build Rating 29 | 6 9 15 24 29 Average Rating 18 | 4 7 11 22 23 On Entrance 10 | . 6 9 15 24 Avg Prop Armor Cover (%) 11 | . . . . 11 Naked Turns . | . . . . . Heaviest Build 48 | 13 15 43 48 48 Greatest Support 47 | 20 20 40 47 47 Greatest Overweight (x) 14 | 3 . 6 1 14 Average Overweight (x) 2 | . . . . 7 Largest Inventory Capacity 15 | 8 8 15 15 15 Average Capacity 12 | 7 8 9 15 15 Most Carried 4 | 3 2 3 3 4 Average Carried 1 | . . 1 2 1 Final Capacity 15 | 8 8 15 15 15 Final Carried 3 | . 2 2 3 2 Class Distribution -------------------- 36% | Gunner 26% | Commander-Gunner 21% | Mutant 11% | Scavenger-Mutant Dominant Class ---------------- Mutant | -10/Materials Scavenger-Mutant | -9/Materials Gunner | -8/Materials Gunner | -8/Storage Resources | -11 -10 -9 -8 -8 ----------- Run | Yrd Mat Mat Mat Sto Matter Collected 987 | 260 102 219 98 308 Remotely . | . . . . . Salvage Created 1373 | . 137 596 98 542 Parts 77 | . 8 31 8 30 Haulers Intercepted . | . . . . . Recyclers Shooed 2 | . . . 1 1 Parts Field Recycled . | . . . . . Retrieved Matter . | . . . . . Parts Self-Destructed . | . . . . . Prevented . | . . . . . Parts Restored . | . . . . . Kills | -11 -10 -9 -8 -8 ------- Run | Yrd Mat Mat Mat Sto Combat Hostiles Destroyed 32 | . 3 13 6 10 Guns 21 | . 3 6 6 6 Cannons 11 | . . 7 . 4 Classes Destroyed 10 | . 2 4 1 3 Worker 2 | . . 1 . 1 Recycler 1 | . . . . 1 Operator 1 | . . . . 1 Watcher 1 | . 1 . . . Swarmer 9 | . . . 6 3 Grunt 14 | . 3 8 . 3 Brawler 1 | . . 1 . . Duelist 1 | . . 1 . . Sentry 7 | . . 3 . 4 Hunter 1 | . . . . 1 Best Kill Streak 6 | . 2 6 4 3 Combat Bots Only 5 | . 2 5 4 3 Max Kills in Single Turn 2 | . 1 2 2 2 Gunslinging 1 | . . . 1 . Exploded . | . . . . . Melee . | . . . . . Uniques/NPCs Destroyed . | . . . . . Combat | -11 -10 -9 -8 -8 -------- Run | Yrd Mat Mat Mat Sto Hostile Shots Fired 216 | . 36 87 12 81 Missed 55 | . 11 18 4 22 Hits 161 | . 25 69 8 59 Melee 11 | . . 11 . . Projectile 150 | . 25 58 8 59 Critical Strikes 10 | . 1 3 1 5 Damage Taken 2452 | . 314 1046 69 1023 Core 692 | . 63 271 17 341 Absorbed by Shields . | . . . . . Core Remaining (%) 68 | 100 74 32 . . Volleys Fired 113 | . 22 48 8 35 Largest 3 | . 2 2 3 3 Hottest 175 | . 85 124 175 175 Shots Fired 252 | . 44 82 24 102 Gun 202 | . 44 49 24 85 Cannon 50 | . . 33 . 17 Launcher . | . . . . . Special . | . . . . . Kinetic 84 | . 38 29 . 17 Thermal 168 | . 6 53 24 85 Explosive . | . . . . . Electromagnetic . | . . . . . Robot Hit Streak 14 | . 6 14 3 11 Robot Miss Streak 5 | . 4 3 3 5 Penetration Max . | . . . . . Secondary Targets 5 | . 1 2 2 . Max Gunslinging Chain 1 | . 1 1 1 . Shots Hit Robots 161 | . 26 56 10 69 Core Hits 76 | . 9 24 6 37 Critical Kills . | . . . . . Critical Parts Destroyed . | . . . . . Critical Strikes 5 | . . 1 1 3 Burn 5 | . . 1 1 3 Melee Attacks . | . . . . . Impact . | . . . . . Slashing . | . . . . . Piercing . | . . . . . Sneak Attacks . | . . . . . Combat Hostiles . | . . . . . Follow-up Attacks . | . . . . . Damage Inflicted 2745 | . 310 950 214 1271 Guns 2008 | . 310 500 208 990 Cannons 729 | . . 450 . 279 Explosions . | . . . . . Melee . | . . . . . Ramming 8 | . . . 6 2 Kinetic 763 | . 227 257 . 279 Thermal 1974 | . 83 693 208 990 Explosive . | . . . . . Electromagnetic . | . . . . . Impact . | . . . . . Slashing . | . . . . . Piercing . | . . . . . Highest Corruption 2 | . . . . 2 Average Corruption 1 | . . . . 1 Corruption Purged . | . . . . . Corruption Blocked . | . . . . . Effects 7 | . . . . 7 Message Errors 1 | . . . . 1 Matter Fused 2 | . . . . 2 Energy Discharges 1 | . . . . 1 Data Loss (minor) 2 | . . . . 2 Weapon Failures 1 | . . . . 1 Overload Shots . | . . . . . Overflow Damage . | . . . . . Projectiles . | . . . . . Explosions . | . . . . . Melee . | . . . . . Knockbacks 5 | . . . . 5 Impact . | . . . . . Kinetic 5 | . . . . 5 Secondary . | . . . . . Self-Inflicted Damage 1 | . . . . 1 Shots . | . . . . . Rammed 1 | . . . . 1 Targets Rammed 3 | . . 1 1 1 Kicked 2 | . . 1 1 . Crushed . | . . . . . Highest Temperature 695 | . 204 384 456 695 Average Temperature 170 | . 62 123 220 207 Received Heat Transfer 861 | . 192 327 27 315 Effects 28 | . . 2 3 23 Shutdowns 5 | . . 1 . 4 Energy Bleed 2 | . . . 1 1 Interference 7 | . . 1 . 6 Matter Decay 5 | . . . 2 3 Short Circuit 3 | . . . . 3 Damage (minor) 1 | . . . . 1 Damage (major) 3 | . . . . 3 Damage (core) 2 | . . . . 2 Siege Activations . | . . . . . Martial Activations . | . . . . . Shielding Activations . | . . . . . Robots Disrupted . | . . . . . Combat Hostiles . | . . . . . Robots Corrupted . | . . . . . Combat Hostiles . | . . . . . Parts Fried . | . . . . . Impact Corruptions . | . . . . . Robots Melted . | . . . . . Combat Hostiles . | . . . . . Parts Melted 6 | . . 4 . 2 Heat Transferred 4366 | . 185 1517 481 2183 Parts Sabotaged . | . . . . . Parts Stolen . | . . . . . Parts Stripped . | . . . . . Power Chain Reactions . | . . . . . Alert | -11 -10 -9 -8 -8 ------- Run | Yrd Mat Mat Mat Sto Maximum Alert Level . | . . . . . Low Security (%) 100 | 100 100 100 100 100 Level 1 . | . . . . . Level 2 . | . . . . . Level 3 . | . . . . . Level 4 . | . . . . . Level 5 . | . . . . . High Security . | . . . . . Max Security . | . . . . . Peak Influence 130 | . 40 125 130 91 Initial 50 | . . . 48 50 Average 30 | . 11 59 47 23 Influence Increases 968 | . 87 335 160 386 Destroy 0b10 Robot/C 680 | . 60 260 120 240 Destroy 0b10 Robot/NC 35 | . 5 5 . 25 Destroy Leader 176 | . 22 70 10 74 Allied During Kill 31 | . . . . 31 Disable Machine 30 | . . . 30 . Destroy Structure 1 | . . . . 1 Lose Combat Pursuer 15 | . . . . 15 Influence Decreases 952 | . 87 220 155 490 Entered New Map 137 | . . . 67 70 Time Decay 682 | . 87 160 88 347 Lost Part 100 | . . 60 . 40 Lost Ally 33 | . . . . 33 Squads Dispatched 6 | . 1 3 1 1 Investigation 2 | . . 2 . . Extermination . | . . . . . Reinforcement 2 | . 1 1 . . Assault . | . . . . . Garrison 2 | . . . 1 1 Intercept . | . . . . . Searches Triggered . | . . . . . Construction Impeded . | . . . . . Haulers Reinforced . | . . . . . Active Scanning Responses . | . . . . . Cargo Convoy Interrupts . | . . . . . Stealth | -11 -10 -9 -8 -8 --------- Run | Yrd Mat Mat Mat Sto Distress Signals 3 | . . 1 2 . Communications Jammed . | . . . . . Distress Signals . | . . . . . Times Spotted 54 | . 6 18 9 21 Peak Tracking Total 6 | . 3 6 4 6 Tactical Retreats 1 | . . . . 1 Traps | -11 -10 -9 -8 -8 ------- Run | Yrd Mat Mat Mat Sto Traps Triggered 2 | . . 2 . . Indirectly . | . . . . . Trap Hack Attempts . | . . . . . Triggered . | . . . . . Disarmed . | . . . . . Reprogrammed . | . . . . . Reused . | . . . . . Traps Extracted . | . . . . . Installed . | . . . . . Triggered . | . . . . . Machines | -11 -10 -9 -8 -8 ---------- Run | Yrd Mat Mat Mat Sto Machines Disabled 2 | . . . 2 . Max in Single Turn 2 | . . . 2 . Machines Repaired . | . . . . . Machines Dismantled . | . . . . . Machines Sabotaged . | . . . . . Overloaded Fab Kills . | . . . . . Hacking | -11 -10 -9 -8 -8 --------- Run | Yrd Mat Mat Mat Sto Machines Accessed . | . . . . . Terminals . | . . . . . Fabricators . | . . . . . Repair Stations . | . . . . . Recycling Units . | . . . . . Scanalyzers . | . . . . . Garrison Access . | . . . . . Total Hacks . | . . . . . Successful . | . . . . . Failed . | . . . . . Catastrophic . | . . . . . Database Lockouts . | . . . . . Manual 2 | . . 2 . . Terminals . | . . . . . Fabricators . | . . . . . Repair Stations . | . . . . . Recycling Units . | . . . . . Scanalyzers . | . . . . . Garrison Access . | . . . . . Terminal Hacks . | . . . . . Fabricator Hacks . | . . . . . Repair Station Hacks . | . . . . . Recycling Unit Hacks . | . . . . . Scanalyzer . | . . . . . Garrison Access Hacks . | . . . . . Unauthorized Hacks . | . . . . . Terminals . | . . . . . Fabricators . | . . . . . Repair Stations . | . . . . . Recycling Units . | . . . . . Scanalyzers . | . . . . . Garrison Access . | . . . . . Data Cores Recovered 1 | . . . . 1 Used . | . . . . . Hacking Detections 1 | . . 1 . . Full Trace Events . | . . . . . Feedback Events . | . . . . . Feedback Blocked . | . . . . . Robot Schematics Acquired . | . . . . . Robots Built . | . . . . . Authchips . | . . . . . Time . | . . . . . Total Robot Build Rating . | . . . . . Part Schematics Acquired . | . . . . . Parts Built . | . . . . . Authchips . | . . . . . Time . | . . . . . Total Part Build Rating . | . . . . . Part Studies Acquired . | . . . . . Parts Repaired . | . . . . . Time . | . . . . . Parts Recycled . | . . . . . Recycled Matter . | . . . . . Retrieved Matter . | . . . . . Retrieved Components . | . . . . . Parts Scanalyzed . | . . . . . Part Schematics Acquired . | . . . . . Parts Damaged . | . . . . . Bothacking | -11 -10 -9 -8 -8 ------------ Run | Yrd Mat Mat Mat Sto Used RIF Installer . | . . . . . Robots Hacked . | . . . . . Non-combat . | . . . . . Combat . | . . . . . Robot Hacks Applied . | . . . . . Relay Couplers Released . | . . . . . Fabnet Peak Effective % . | . . . . . Robots Rewired . | . . . . . Allies Hacked . | . . . . . Hacks Repelled . | . . . . . Allies | -11 -10 -9 -8 -8 -------- Run | Yrd Mat Mat Mat Sto Total Allies 10 | . . . . 10 Largest Group 10 | . . . . 10 Highest-Rated Group 173 | . . . . 173 Highest-Rated Ally 29 | . . . . 29 Total Orders . | . . . . . Ally Attacks 30 | . . . . 30 Total Damage 304 | . . . . 304 Kills 4 | . . . . 4 Allies Corrupted 1 | . . . . 1 Allies Melted . | . . . . . Intel | -11 -10 -9 -8 -8 ------- Run | Yrd Mat Mat Mat Sto Active Infowar (turns) . | . . . . . Robot Analysis Total . | . . . . . Derelict Logs Recovered . | . . . . . Drone Launches . | . . . . . Drone Recoveries . | . . . . . Exploration | -11 -10 -9 -8 -8 ------------- Run | Yrd Mat Mat Mat Sto Turns Passed 2276 | 90 280 392 259 1255 Spaces Moved 751 | 64 176 165 125 221 Core 102 | 12 . 1 . 89 Treads . | . . . . . Legs 649 | 52 176 164 125 132 Wheels . | . . . . . Hover . | . . . . . Flight . | . . . . . Fastest Speed 50 | 50 120 120 122 190 Average Speed 245 | 122 120 138 176 501 Slowest Speed 750 | 200 120 350 192 750 Overloaded Moves . | . . . . . Propulsion Burnouts . | . . . . . Robots Hopped . | . . . . . Potential Cave-ins . | . . . . . Cave-ins Triggered . | . . . . . Exploration Rate (%) 24 | 4 34 24 18 42 Regions Visited 4 Branch Regions 1 Pre-discovered Areas . | . . . . . Known Exits Taken . | . . . . . Unknown Exits Taken 4 | 1 1 1 1 . Scrap Searched . | . . . . . Spaces Dug . | . . . . . Terrain Destroyed . | . . . . . Melee . | . . . . . Projectile . | . . . . . AOE . | . . . . . Terrain Rammed . | . . . . . Walls Destroyed . | . . . . . Machines Disabled . | . . . . . Actions | -11 -10 -9 -8 -8 --------- Run | Yrd Mat Mat Mat Sto Total 960 | 75 205 249 145 286 Wait 12 | . . . . 12 Move 747 | 63 175 164 124 221 Hop . | . . . . . Pick Up 37 | 6 4 16 5 6 Fast Attach . | . . . . . Attach 32 | 6 2 16 4 4 Detach . | . . . . . Swap 1 | . . . 1 . Drop 15 | . 2 4 2 7 Fire 113 | . 22 48 8 35 Melee . | . . . . . Ram 1 | . . . . 1 Kick 2 | . . 1 1 . Crush . | . . . . . Escape Stasis . | . . . . . Rewire . | . . . . . Trap . | . . . . . Miscellaneous . | . . . . . Route ------- -11/Scrapyard -10/Materials -9/Materials -8/Materials -8/Storage History --------- Turn | Location | Event 16 | -11/Scrapyard | Discovered new exit (range 15) 91 | -11/Scrapyard | Entered Materials 301 | -10/Materials | Build established: Mutant 353 | -10/Materials | Discovered new exit (range 15) 371 | -10/Materials | Entered another Materials area 371 | -9/Materials | Evolved 2 slots: Propulsion x2 623 | -9/Materials | Core integrity fell below 50% 643 | -9/Materials | Lost 5 parts (3n2w) 736 | -9/Materials | Discovered new exit (range 11) 763 | -9/Materials | Entered another Materials area 763 | -8/Materials | Evolved 2 slots: Utility x1, Weapon x1 990 | -8/Materials | Garrison activated, responded to threat 993 | -8/Materials | Discovered new exit (range 16) 1022 | -8/Materials | Entered Storage 1173 | -8/Storage | Build established: Gunner 1610 | -8/Storage | Assisted by bots powering up and referring to "LRC-V3" 1897 | -8/Storage | Build established: Commander-Gunner 2019 | -8/Storage | Lost 4 allies 2241 | -8/Storage | Core integrity fell below 50% 2254 | -8/Storage | Lost 6 allies 2271 | -8/Storage | Garrison activated, responded to threat 2277 | -8/Storage | Self-destructed Last Messages --------------- Acquired 77 matter. Acquired 6 matter. K-01 Serf collects debris. R-06 Scavenger knocked back. G-47 Trooper knocked back. K-01 Serf collects debris. System corrupted: Flak Cannon jammed. Critical hit (Burn: +37). G-47 Trooper destroyed. K-01 Serf collects debris. G-50 Soldier suffers critical hit (Burn). G-50 Soldier calls for garrison reinforcements. ALERT: Activating Garrison Access S001. G-50 Soldier knocked back. Particle Charger destroyed. Critical hit (Burn: +37). Field Laser destroyed. G-50 Soldier suffers critical hit (Burn). G-50 Soldier overheating. K-01 Serf collects debris. Map ----- +----------------------------------------------------+ | | | | | | | | | | | ?????????????????????????????????????????????????? | | ?????????????????????????????????????????????????? | | ?????????????????????????????????????????????????? | | ?????????????????????????????????????????????????? | | ?????????????????????????????????????????????????? | | ?????????????????????????????????????????????????? | | ?????????????????????????????????????????????????? | | ?????????????????????????????????????????????????? | | ?????????????????????????????????????????????????? | | ?????????????????????????????????????????????????? | | ?????????????????????????????????????????????????? | | ?????????????????????????????????????????????????? | | ?????????????????????????????????????????????????? | | ?????????????????????????????????????????????????? | | ?????????????????????????????????????????????????? | | ?????????????????????????????#???????????????????? | | ???????????????????????????? #???????###?????????? | | ?????????????###+###########g#####s #?????????? | | ?????????????# Y ????????? | | ?????????????# = k Yr ????????? | | ?????????????# [%a @ Y a ????????? | | ?????????????????######## ########???????????????? | | ????????????????????????#%#??????????????????????? | | ????????????????????????#k#??????????????????????? | | ????????????????????????#%#??????????????????????? | | ?????????????????????####+######?????????????????? | | ?????????????????????#[===%![ #?????????????????? | | ?????????????????????# """"" #?????????????????? | | ?????????????????????#?????"%! #?????????????????? | | ???????????????????????????"= #?????????????????? | | ???????????????????????????"" #?????????????????? | | ????????????????????????????" #?????????????????? | | ?????????????????????# """"" #?????????????????? | | ?????????????????????# % #?????????????????? | | ?????????????????????########+#################### | | ???????????????????????# | | ???????????????????????# | | ???????????????????????# | | ???????????????????????######+#########+#### | | ????????????????????????# #??? ?# ! | | ????????????????????????# ^ #?? + *% | | ???????^????????????????# #? #### ## | | ????????????????????????# % # """ #??# #? | | ???????^?^^?????????????# ==% %=/ """ #??# #? | | ????????????????????????#!![ % = # """ #??# #? | +----------------------------------------------------+ Best States ------------- Heat Dissipation 50 Energy Generation 14 Energy Capacity 275 Matter Stores 300 Matter Capacity 300 Sight Range 16 Terrain Scan Density 10 Armor Coverage 225 Evasion (%) 55 Particle Charging 15 Item Schematics ----------------- None Robot Schematics ------------------ None Fabricated ------------ Nothing Repaired ---------- Nothing Studied --------- None Alien Tech Used ----------------- None Achievements -------------- Bumper Bots Ghost 'Em Well Done Challenges ------------ None Game ------ Seed SingularityActuatorBlaster Manual? 0 Play Time 00:17:12 Cumulative 10.5 hours Start 2025.12.15 @ 23:47:49 End 2025.12.16 @ 00:05:09 Sessions 1 Manual Loads 0 Difficulty Rogue Special Mode None Game No. 33 Rogue 32 Adventurer 0 Explorer 1 Win Type - Total 0 Types 0/0/0/0/0/0/0/0/0/0 Lore% 7 Gallery% 14 Achievement% 9 Wizard Run 0 Options --------- Layout 1 ASCII 0 Keyboard 0 Movement Mouse Keybinds 0 Fullscreen 1 Font 32/SmallcapsGlow Map View 50x35 Zoom Use 0% Tactical HUD 0 Map Filters NONE Filters NONE Steam 1 RUN: c8f66b27-9ae1-46d5-9180-f1790ab87426